bitfinex-derivatives/quotes_SOLF0:USTF0_20250211
["timestamp","ask_amount","ask_price","bid_price","bid_amount"]
[1739303208181,0.0386038,195.37,195.31,4.4083]
[1739303209477,0.0386038,195.37,195.36,5.119]
[1739303209872,0.0386038,195.37,195.31,4.4083]
[1739303210278,0.0386038,195.37,195.31,1.4768]
[1739303210475,0.0386038,195.37,195.31,5.1201]
[1739303210684,0.0386038,195.37,195.25,4.5133]
[1739303210881,22.63105642,195.39,195.25,4.5133]
[1739303211083,0.03890645,195.33,195.25,4.5133]
[1739303211483,0.03890645,195.33,195.27,5.1212]
[1739303211681,0.03890645,195.33,195.25,4.5133]
[1739303211881,0.03890645,195.33,195.27,22.63105642]
[1739303212589,0.03890645,195.33,195.32,5.12]
[1739303214585,0.03890645,195.33,195.31,5.1202]
[1739303215188,0.03890645,195.33,195.3,5.1205]
[1739303215486,0.03890645,195.33,195.25,4.5133]
[1739303215882,5.1203,195.32,195.25,4.5133]
[1739303216183,0.03890645,195.33,195.25,4.5133]
[1739303216481,0.03890645,195.33,195.25,1.5058]
[1739303217387,0.03890645,195.33,195.29,14.1603034]
[1739303217786,0.03890645,195.33,195.26,14.1603034]
[1739303218185,5.15870645,195.33,195.29,5.1206]
[1739303218382,0.03890645,195.33,195.26,14.1603034]
[1739303219689,5.12,195.32,195.26,14.1603034]
[1739303219986,5.12,195.32,195.28,5.1208]
[1739303220192,0.03890645,195.33,195.26,14.1603034]
[1739303220391,0.03890645,195.33,195.25,1.5058]
[1739303220590,0.03890645,195.33,195.23,14.1603034]
[1739303220792,5.1207,195.3,195.23,14.1603034]
[1739303220990,0.03890645,195.33,195.23,14.1603034]
[1739303221289,0.03746688,195.3,195.23,14.1603034]
[1739303221490,0.03746688,195.3,195.26,14.1603034]
[1739303221691,0.03746688,195.3,195.29,5.1208]
[1739303222290,0.03746688,195.3,195.24,5.1221]
[1739303222891,0.03746688,195.3,195.2,14.1603034]
[1739303223091,0.03746688,195.3,195.26,5.1214]
[1739303223387,0.03746688,195.3,195.2,14.1603034]
[1739303223595,0.03746688,195.3,195.26,14.1603034]
[1739303224192,0.03746688,195.3,195.2,14.1603034]
[1739303224193,0.03746688,195.3,195.29,19.2811034]
[1739303224493,1.5102,195.39,195.29,14.1603034]
[1739303224688,1.5102,195.39,195.34,5.1194]
[1739303224689,5.1187,195.38,195.34,5.1194]
[1739303224892,1.5102,195.39,195.29,14.1603034]
[1739303225491,14.1603034,195.42,195.32,14.1603034]
[1739303225689,0.03719393,195.36,195.33,5.1197]
[1739303225995,1.5873,195.46,195.35,14.1603034]
[1739303226195,4.719e-05,195.36,195.35,14.1603034]
[1739303226385,1.5873,195.46,195.35,14.1603034]
[1739303226584,5.1163,195.47,195.35,14.1603034]
[1739303226895,5.1166,195.46,195.4,5.1178]
[1739303227098,14.1603034,195.48,195.35,14.1603034]
[1739303227387,5.1169,195.44,195.38,5.1184]
[1739303227595,0.03607705,195.43,195.4,0.03522113]
[1739303228397,0.03607705,195.43,195.41,5.1176]
[1739303228598,0.03607705,195.43,195.4,0.03522113]
[1739303228792,0.03607705,195.43,195.4,5.15292113]
[1739303229092,0.03607705,195.43,195.4,14.19552453]
[1739303229295,7.705e-05,195.43,195.4,14.19552453]
[1739303229498,7.705e-05,195.43,195.42,5.1174]
[1739303229692,7.705e-05,195.43,195.4,14.19552453]
[1739303229898,7.705e-05,195.43,195.4,0.03522113]
[1739303232397,5.1174,195.42,195.4,0.03522113]
[1739303232598,7.705e-05,195.43,195.4,0.03522113]
[1739303232800,14.1603034,195.42,195.4,0.03522113]
[1739303232998,5.1177,195.41,195.4,0.03522113]
[1739303233998,14.1603034,195.42,195.28,3.1453]
[1739303234194,14.1603034,195.37,195.28,3.1453]
[1739303234802,14.1603034,195.37,195.24,1.5082]
[1739303235002,14.1603034,195.34,195.24,1.5082]
[1739303235203,14.19309799,195.34,195.3,0.03619358]
[1739303235601,0.03279459,195.34,195.3,0.03619358]
[1739303235997,5.1203,195.31,195.3,0.03619358]
[1739303239709,5.1211,195.28,195.19,1.4756]
[1739303240807,5.1211,195.28,195.22,5.1226]
[1739303241009,5.1211,195.28,195.26,0.03589937]
[1739303242611,0.032876,195.29,195.14,22.65793254]
[1739303242801,2.9892,195.3,195.14,22.65793254]
[1739303243712,0.03793787,195.24,195.14,22.65793254]
[1739303244305,0.03793787,195.24,195.17,22.65793254]
[1739303244613,0.03722264,195.22,195.17,22.65793254]
[1739303245410,22.65793254,195.34,195.17,22.65793254]
[1739303245706,3.0481,195.33,195.17,22.65793254]
[1739303245911,5.1218,195.26,195.22,5.1225]
[1739303246102,3.0481,195.33,195.17,22.65793254]
[1739303246610,0.03707007,195.27,195.23,5.15807889]
[1739303247105,5.1216,195.26,195.23,5.15807889]
[1739303247304,0.03707007,195.27,195.23,0.03587889]
[1739303247507,0.03707007,195.27,195.24,5.1221]
[1739303247910,0.03707007,195.27,195.25,5.1218]
[1739303248209,0.03707007,195.27,195.23,0.03587889]
[1739303248517,22.65793254,195.37,195.23,0.03587889]
[1739303249012,22.65793254,195.37,195.21,3.0704]
[1739303249212,22.65793254,195.37,195.27,5.1212]
[1739303249514,5.12,195.33,195.21,3.0704]
[1739303249913,0.03816988,195.31,195.28,5.121]
[1739303250212,0.03816988,195.31,195.27,0.03454257]
[1739303250414,0.03816988,195.31,195.3,5.1205]
[1739303250613,0.03816988,195.31,195.27,0.03454257]
[1739303251015,0.03816988,195.31,195.3,5.1205]
[1739303251214,0.03816988,195.31,195.27,0.03454257]
[1739303252015,0.03816988,195.31,195.28,5.121]
[1739303252216,0.03816988,195.31,195.27,0.03454257]
[1739303253215,5.15866988,195.31,195.27,0.03454257]
[1739303253519,0.03816988,195.31,195.27,0.03454257]
[1739303255620,0.03816988,195.31,195.3,5.1205]
[1739303256518,0.03816988,195.31,195.27,0.03454257]
[1739303256519,0.03816988,195.31,195.29,5.1206]
[1739303256818,0.03816988,195.31,195.27,0.03454257]
[1739303257014,5.15846988,195.31,195.27,5.15584257]
[1739303257515,0.03816988,195.31,195.27,0.03454257]
[1739303257816,5.1209,195.29,195.27,0.03454257]
[1739303258614,5.1211,195.28,195.27,0.03454257]
[1739303259213,5.122,195.25,195.21,5.1226]
[1739303259715,5.1222,195.24,195.21,5.1226]
[1739303260313,5.16068888,195.24,195.21,5.16068803]
[1739303260517,0.03848888,195.24,195.23,5.1224]
[1739303260717,0.03848888,195.24,195.21,0.03808803]
[1739303261117,5.1226,195.22,195.21,0.03808803]
[1739303262518,0.03848888,195.24,195.21,0.03808803]
[1739303263016,0.03848888,195.24,195.21,5.16098803]
[1739303263217,5.16078888,195.24,195.21,0.03808803]
[1739303263420,0.03848888,195.24,195.21,0.03808803]
[1739303264723,5.1225,195.23,195.21,0.03808803]
[1739303265418,5.1226,195.22,195.21,0.03808803]
[1739303268021,5.1225,195.23,195.21,0.03808803]
[1739303268325,0.03848888,195.24,195.21,0.03808803]
[1739303270022,5.16068888,195.24,195.21,0.03808803]
[1739303270823,0.03848888,195.24,195.21,5.16088803]
[1739303271429,0.03848888,195.24,195.22,5.1225]
[1739303272727,0.03848888,195.24,195.21,5.16098803]
[1739303273829,0.03848888,195.24,195.21,0.03808803]
[1739303275723,0.03848888,195.24,195.21,5.16088803]
[1739303275928,0.03848888,195.24,195.21,0.03808803]
[1739303277925,5.1226,195.22,195.21,0.03808803]
[1739303279131,0.03848888,195.24,195.21,0.03808803]
[1739303279326,0.03848888,195.24,195.21,5.16078803]
[1739303279728,5.16058888,195.24,195.21,0.03808803]
[1739303279928,0.03848888,195.24,195.21,5.16088803]
[1739303280130,0.03848888,195.24,195.21,0.03808803]
[1739303281030,0.03848888,195.24,195.23,5.1224]
[1739303281732,0.03848888,195.24,195.21,0.03808803]
[1739303282126,5.16088888,195.24,195.21,0.03808803]
[1739303282331,0.03848888,195.24,195.21,0.03808803]
[1739303284031,8.888e-05,195.24,195.21,0.03808803]
[1739303284235,14.16486361,195.35,195.21,3.18578803]
[1739303284434,5.1205,195.31,195.27,5.1211]
[1739303284832,5.1201,195.32,195.27,5.1211]
[1739303285030,14.16486361,195.35,195.23,14.16486361]
[1739303285531,0.03563278,195.31,195.27,0.03608709]
[1739303285735,0.03563278,195.31,195.28,5.121]
[1739303285935,0.03563278,195.31,195.27,0.03608709]
[1739303286337,0.03563278,195.31,195.3,5.1206]
[1739303286535,0.03563278,195.31,195.27,0.03608709]
[1739303287638,5.1209,195.29,195.27,0.03608709]
[1739303288234,5.1211,195.28,195.27,0.03608709]
[1739303288631,14.16486361,195.29,195.17,14.16486361]
[1739303288836,3.2017,195.37,195.21,5.1229]
[1739303288837,5.122,195.25,195.21,5.1229]
[1739303289036,14.16486361,195.26,195.16,3.0849]
[1739303289237,14.16486361,195.26,195.16,4.6336]
[1739303289532,19.28646361,195.26,195.16,4.6336]
[1739303289734,14.16486361,195.26,195.16,4.6336]
[1739303289931,5.15570914,195.23,195.19,5.15664613]
[1739303290536,0.03330914,195.23,195.19,0.03324613]
[1739303290743,0.03330914,195.23,195.2,5.1231]
[1739303291443,0.03330914,195.23,195.19,0.03324613]
[1739303292943,5.1229,195.22,195.19,0.03324613]
[1739303293345,0.03330914,195.23,195.19,0.03324613]
[1739303294046,0.03330914,195.23,195.19,5.15654613]
[1739303294547,0.03330914,195.23,195.19,0.03324613]
[1739303295446,5.1227,195.22,195.19,0.03324613]
[1739303295649,0.03330914,195.23,195.19,0.03324613]
[1739303296142,5.15590914,195.23,195.19,0.03324613]
[1739303296544,0.03330914,195.23,195.19,0.03324613]
[1739303297146,5.1232,195.2,195.19,0.03324613]
[1739303301455,14.16486361,195.21,195.19,0.03324613]
[1739303302251,0.03330914,195.23,195.19,0.03324613]
[1739303302642,14.16486361,195.21,195.19,0.03324613]
[1739303302845,5.1232,195.2,195.19,0.03324613]
[1739303303447,14.16486361,195.21,195.19,0.03324613]
[1739303304050,5.1232,195.2,195.19,0.03324613]
[1739303304442,14.16486361,195.21,195.19,0.03324613]
[1739303305951,5.1232,195.2,195.19,0.03324613]
[1739303306155,14.16486361,195.21,195.19,0.03324613]
[1739303306348,5.1229,195.21,195.19,0.03324613]
[1739303306952,5.1232,195.2,195.19,0.03324613]
[1739303308450,14.16486361,195.21,195.19,0.03324613]
[1739303309352,5.1232,195.2,195.19,0.03324613]
[1739303311453,0.03330914,195.23,195.19,0.03324613]
[1739303311656,9.10418192,195.23,195.19,0.03324613]
[1739303311957,9.07087278,195.21,195.19,5.15664613]
[1739303312351,9.07087278,195.21,195.19,0.03324613]
[1739303313156,14.19397278,195.21,195.19,0.03324613]
[1739303313653,5.1231,195.21,195.19,0.03324613]
[1739303314153,5.1227,195.22,195.19,0.03324613]
[1739303314557,14.20979946,195.23,195.19,0.03324613]
[1739303314759,19.29969032,195.2,195.19,0.03324613]
[1739303317154,5.1238,195.18,195.14,5.1247]
[1739303317356,14.17649032,195.15,195.0,55.67806459]
[1739303317555,14.17649032,195.12,195.02,28.1125319]
[1739303318259,14.17649032,195.15,195.13,5.1248]
[1739303318460,9.7e-07,195.09,195.06,4.7823]
[1739303318660,14.17649032,195.18,195.12,0.03635332]
[1739303318961,5.1242,195.16,195.12,5.1251]
[1739303319161,14.17649032,195.18,195.06,4.7823]
[1739303319457,5.1242,195.17,195.13,5.1248]
[1739303319654,0.03383901,195.14,195.13,5.1248]
[1739303320664,0.03383901,195.14,195.12,5.1252]
[1739303320961,0.03383901,195.14,195.1,0.03249893]
[1739303321862,0.03383901,195.14,195.13,5.125]
[1739303322763,0.03383901,195.14,195.1,0.03249893]
[1739303323460,0.03383901,195.14,195.13,5.125]
[1739303323661,0.03383901,195.14,195.1,0.03249893]
[1739303323861,5.15873901,195.14,195.1,5.15809893]
[1739303324064,5.15873901,195.14,195.1,0.03249893]
[1739303324263,0.03383901,195.14,195.13,5.125]
[1739303328563,0.03383901,195.14,195.1,0.03249893]
[1739303329467,0.03383901,195.14,195.13,5.125]
[1739303335765,9.10891805,195.14,195.1,0.03249893]
[1739303335961,9.07507904,195.12,195.1,5.15819893]
[1739303339469,9.07507904,195.12,195.1,0.03249893]
[1739303339669,9.10891805,195.14,195.1,0.03249893]
[1739303340276,9.10891805,195.14,195.11,5.1253]
[1739303340469,9.10891805,195.14,195.1,0.03249893]
[1739303340668,9.10891805,195.14,195.12,5.1251]
[1739303340973,14.23371805,195.14,195.1,0.03249893]
[1739303341168,9.07507904,195.12,195.1,0.03249893]
[1739303341575,5.1255,195.11,195.1,0.03249893]
[1739303341772,9.07507904,195.12,195.1,0.03249893]
[1739303342174,0.03383901,195.14,195.1,0.03249893]
[1739303342377,0.03383901,195.14,195.13,5.125]
[1739303342677,0.03383901,195.14,195.11,9.07507904]
[1739303342874,9.10891805,195.14,195.1,0.03249893]
[1739303343078,14.23371805,195.14,195.1,0.03249893]
[1739303343281,9.10891805,195.14,195.1,0.03249893]
[1739303343478,9.10891805,195.14,195.11,5.1253]
[1739303343779,9.07507904,195.12,195.1,0.03249893]
[1739303345177,0.03383901,195.14,195.1,0.03249893]
[1739303345383,0.03383901,195.14,195.11,9.07507904]
[1739303345579,0.03383901,195.14,195.13,5.125]
[1739303345781,0.03383901,195.14,195.13,14.20007904]
[1739303346581,9.07507904,195.2,195.13,9.07507904]
[1739303346875,25.01603572,195.28,195.01,207.9821]
[1739303346876,9.07507904,195.24,195.18,9.07507904]
[1739303347282,9.07507904,195.26,195.2,9.07507904]
[1739303347882,0.03712035,195.25,195.21,0.03471648]
[1739303348079,0.03712035,195.25,195.24,5.1221]
[1739303348280,0.03712035,195.25,195.24,14.19717904]
[1739303351583,0.03712035,195.25,195.24,5.1221]
[1739303353188,0.03712035,195.25,195.23,5.1224]
[1739303353787,0.03712035,195.25,195.21,0.03471648]
[1739303353988,0.03712035,195.25,195.24,5.1221]
[1739303354189,0.03712035,195.25,195.21,0.03471648]
[1739303354585,14.19743615,195.25,195.21,0.03471648]
[1739303355789,14.19743615,195.25,195.22,5.1226]
[1739303355990,0.03712035,195.25,195.22,5.1226]
[1739303356490,5.15902035,195.25,195.21,0.03471648]
[1739303356691,0.03712035,195.25,195.21,0.03471648]
[1739303356987,5.1225,195.23,195.21,0.03471648]
[1739303357291,0.03712035,195.25,195.21,0.03471648]
[1739303357687,5.1223,195.24,195.21,0.03471648]
[1739303357993,0.03712035,195.25,195.21,0.03471648]
[1739303358791,0.03712035,195.25,195.22,5.1226]
[1739303360190,0.03712035,195.25,195.21,0.03471648]
[1739303360889,0.03712035,195.25,195.24,5.1221]
[1739303365091,0.03712035,195.25,195.23,5.1223]
[1739303365493,0.03712035,195.25,195.21,0.03471648]
[1739303365789,0.03712035,195.25,195.24,5.1221]
[1739303366487,0.03712035,195.25,195.21,0.03471648]
[1739303366692,0.03712035,195.25,195.22,5.1226]
[1739303366892,0.03712035,195.25,195.21,0.03471648]
[1739303366893,14.19743615,195.25,195.21,0.03471648]
[1739303367491,0.03712035,195.25,195.21,0.03471648]
[1739303367792,0.03712035,195.25,195.24,5.1221]
[1739303370002,2.035e-05,195.25,195.24,5.1221]
[1739303371695,2.035e-05,195.25,195.24,14.18358338]
[1739303372198,9.06148338,195.33,195.24,9.06148338]
[1739303372393,9.06148338,195.33,195.27,9.06148338]
[1739303372593,9.06148338,195.35,195.29,9.06148338]
[1739303372790,9.06148338,195.35,195.34,5.1195]
[1739303373700,0.03483267,195.36,195.34,5.1195]
[1739303373900,0.03483267,195.36,195.33,0.03646901]
[1739303374395,19.30808423,195.36,195.33,0.03646901]
[1739303375600,5.1192,195.35,195.33,0.03646901]
[1739303375797,14.18888423,195.36,195.33,0.03646901]
[1739303376298,5.1195,195.35,195.33,0.03646901]
[1739303377100,19.30788423,195.36,195.33,5.15626901]
[1739303377299,0.03483267,195.36,195.33,0.03646901]
[1739303378204,0.03483267,195.36,195.34,5.1195]
[1739303378503,0.03483267,195.36,195.33,0.03646901]
[1739303378700,0.03483267,195.36,195.34,5.1195]
[1739303378899,0.03483267,195.36,195.33,0.03646901]
[1739303379804,0.03483267,195.36,195.35,5.1192]
[1739303382100,0.03483267,195.36,195.33,0.03646901]
[1739303382306,14.18888423,195.36,195.33,0.03646901]
[1739303383206,5.1195,195.34,195.33,0.03646901]
[1739303386506,5.1204,195.31,195.27,5.1213]
[1739303387000,14.15405156,195.32,195.22,4.6277]
[1739303387203,14.15405156,195.32,195.28,5.121]
[1739303387399,14.15405156,195.32,195.22,4.6277]
[1739303387599,14.19183567,195.32,195.28,0.03899897]
[1739303388107,14.15405156,195.29,195.28,0.03899897]
[1739303388309,19.27485156,195.29,195.28,0.03899897]
[1739303389309,14.15405156,195.29,195.17,4.491]
[1739303389501,20.0898,195.35,195.17,4.491]
[1739303389502,14.15405156,195.26,195.17,4.491]
[1739303389704,14.15405156,195.26,195.19,5.1234]
[1739303389902,14.15405156,195.26,195.12,14.15405156]
[1739303390401,0.03656,195.21,195.17,0.03890457]
[1739303391306,0.03656,195.21,195.18,5.1236]
[1739303391904,0.03656,195.21,195.17,0.03890457]
[1739303392108,0.03656,195.21,195.19,5.1234]
[1739303393812,0.03656,195.21,195.17,0.03890457]
[1739303394112,0.03656,195.21,195.18,5.1236]
[1739303394306,0.03656,195.21,195.17,0.03890457]
[1739303394709,0.03656,195.21,195.2,5.1232]
[1739303396517,0.03656,195.21,195.19,5.1234]
[1739303396720,9.10726164,195.21,195.17,0.03890457]
[1739303397213,9.10726164,195.21,195.2,5.1232]
[1739303398122,0.03656,195.21,195.2,5.1232]
[1739303398322,0.03656,195.21,195.19,5.1234]
[1739303398517,9.10726164,195.21,195.17,0.03890457]
[1739303398719,9.07070164,195.19,195.17,0.03890457]
[1739303398914,14.19420164,195.19,195.17,0.03890457]
[1739303400024,9.07070164,195.19,195.17,0.03890457]
[1739303401025,14.19420164,195.19,195.17,0.03890457]
[1739303401325,9.07070164,195.19,195.17,0.03890457]
[1739303402026,5.1237,195.18,195.17,0.03890457]
[1739303403025,9.07070164,195.19,195.17,0.03890457]
[1739303404629,14.19430164,195.19,195.17,0.03890457]
[1739303404827,9.07070164,195.19,195.17,0.03890457]
[1739303405029,14.19420164,195.19,195.17,0.03890457]
[1739303405725,5.1235,195.19,195.17,0.03890457]
[1739303406031,5.1237,195.18,195.17,0.03890457]
[1739303407031,5.1234,195.19,195.17,0.03890457]
[1739303407229,4.7192,195.2,195.17,0.03890457]
[1739303408133,0.03656,195.21,195.17,0.03890457]
[1739303408530,0.03656,195.21,195.2,5.1232]
[1739303409133,6e-05,195.21,195.2,5.1232]
[1739303410139,14.17885891,195.34,195.28,5.121]
[1739303410433,14.17885891,195.34,195.24,14.17885891]
[1739303410734,4.5985,195.35,195.29,5.1206]
[1739303411033,14.17885891,195.37,195.24,14.17885891]
[1739303411236,5.119,195.36,195.24,14.17885891]
[1739303411434,0.0362564,195.32,195.29,0.03562984]
[1739303412136,0.0362564,195.32,195.31,5.1203]
[1739303413230,0.0362564,195.32,195.3,5.1205]
[1739303413439,0.0362564,195.32,195.29,0.03562984]
[1739303413838,0.0362564,195.32,195.31,5.1203]
[1739303414038,5.64e-05,195.32,195.31,5.1203]
[1739303417342,14.17885891,195.43,195.3,18.86475891]
[1739303417542,14.17885891,195.43,195.33,14.17885891]
[1739303417843,5.1174,195.42,195.37,5.1185]
[1739303418143,14.17885891,195.43,195.33,14.17885891]
[1739303418336,0.03901348,195.41,195.38,0.03458726]
[1739303418541,0.03901348,195.41,195.38,5.15298726]
[1739303418937,0.03901348,195.41,195.38,0.03458726]
[1739303420447,0.03901348,195.41,195.39,5.1182]
[1739303420741,0.03901348,195.41,195.38,0.03458726]
[1739303421246,5.118,195.4,195.38,0.03458726]
[1739303421446,0.03901348,195.41,195.38,0.03458726]
[1739303422644,0.03901348,195.41,195.39,5.118]
[1739303423147,0.03901348,195.41,195.38,0.03458726]
[1739303423847,0.03901348,195.41,195.4,5.1179]
[1739303424837,106.37885891,195.52,195.39,14.17885891]
[1739303425046,5.1152,195.51,195.4,3.099]
[1739303425248,106.37885891,195.52,195.4,3.099]
[1739303426244,5.1525696,195.48,195.44,0.03261641]
[1739303426447,0.0367696,195.48,195.44,0.03261641]
[1739303431047,18.86865891,195.58,195.45,14.17885891]
[1739303431342,3.193,195.58,195.48,14.17885891]
[1739303431542,14.17885891,195.61,195.48,14.17885891]
[1739303431951,5.1137,195.57,195.48,14.17885891]
[1739303432449,0.03633604,195.54,195.51,0.03521519]
[1739303432754,5.114,195.56,195.51,0.03521519]
[1739303432947,0.0348113,195.54,195.51,0.03521519]
[1739303436854,5.1146,195.53,195.51,0.03521519]
[1739303437549,5.1491113,195.54,195.51,0.03521519]
[1739303438354,0.0348113,195.54,195.51,0.03521519]
[1739303443055,5.1148,195.53,195.51,0.03521519]
[1739303443357,5.1148,195.52,195.51,0.03521519]
[1739303443553,14.17885891,195.52,195.41,1.4985]
[1739303443858,14.17885891,195.49,195.4,3.099]
[1739303444057,5.116,195.48,195.4,3.099]
[1739303444255,14.17885891,195.49,195.36,14.17885891]
[1739303444656,0.03842571,195.44,195.41,0.03828224]
[1739303446160,5.15532571,195.44,195.41,0.03828224]
[1739303446759,5.1172,195.43,195.41,0.03828224]
[1739303447461,14.17885891,195.43,195.41,0.03828224]
[1739303447857,0.03842571,195.44,195.41,0.03828224]
[1739303448960,5.15532571,195.44,195.41,0.03828224]
[1739303449359,0.03842571,195.44,195.41,0.03828224]
[1739303449561,5.1172,195.43,195.41,0.03828224]
[1739303449758,0.03842571,195.44,195.41,0.03828224]
[1739303450362,5.1174,195.42,195.41,0.03828224]
[1739303450764,14.17885891,195.43,195.41,0.03828224]
[1739303451161,5.15542571,195.44,195.41,0.03828224]
[1739303451361,14.17885891,195.43,195.41,0.03828224]
[1739303451562,5.1174,195.42,195.41,0.03828224]
[1739303451762,14.17885891,195.43,195.32,3.0152]
[1739303452868,5.1191,195.36,195.27,14.17885891]
[1739303453162,0.03751775,195.39,195.27,14.17885891]
[1739303453362,14.17885891,195.4,195.31,0.03903586]
[1739303453565,0.03247603,195.35,195.31,0.03903586]
[1739303454462,0.03247603,195.35,195.33,14.17885891]
[1739303456159,0.03247603,195.35,195.31,0.03903586]
[1739303461870,14.17885891,195.34,195.31,0.03903586]
[1739303462067,5.1199,195.33,195.31,0.03903586]
[1739303462270,14.17885891,195.34,195.31,0.03903586]
[1739303463067,14.17885891,195.34,195.21,18.68275891]
[1739303463972,5.1206,195.3,195.21,18.68275891]
[1739303464368,0.03417611,195.27,195.24,0.03568368]
[1739303464674,5.1206,195.3,195.24,0.03568368]
[1739303464874,0.03317383,195.27,195.24,0.03568368]
[1739303465173,5.1198,195.33,195.24,0.03568368]
[1739303465471,0.03704074,195.27,195.24,0.03568368]
[1739303465875,0.03704074,195.27,195.24,14.21454259]
[1739303466471,4.519,195.39,195.31,14.17885891]
[1739303466674,14.17885891,195.43,195.31,14.17885891]
[1739303466869,5.1178,195.41,195.31,14.17885891]
[1739303467269,14.17885891,195.43,195.31,14.17885891]
[1739303467470,5.1174,195.42,195.31,14.17885891]
[1739303467771,0.03251201,195.39,195.35,0.03315735]
[1739303471673,195.0,195.58,195.37,14.17885891]
[1739303471674,14.17885891,195.49,195.37,14.17885891]
[1739303471873,14.17885891,195.52,195.4,14.17885891]
[1739303472874,0.03383362,195.48,195.44,0.03727399]
[1739303477675,0.03383362,195.48,195.46,14.17885891]
[1739303478880,92.12,195.6,195.46,14.17885891]
[1739303479082,92.12,195.6,195.45,1.6184]
[1739303479083,5.1127,195.6,195.49,14.17885891]
[1739303479282,14.17885891,195.61,195.49,14.17885891]
[1739303479877,0.03561162,195.57,195.53,0.03420009]
[1739303480183,19.29055891,195.64,195.52,14.17885891]
[1739303480383,0.03720904,195.57,195.53,0.03849638]
[1739303480573,0.03720904,195.57,195.55,14.17885891]
[1739303481884,0.03720904,195.57,195.53,0.03849638]
[1739303484191,0.03720904,195.57,195.55,14.17885891]
[1739303484787,14.17885891,195.7,195.55,14.17885891]
[1739303485095,14.17885891,195.7,195.56,15.66715891]
[1739303485990,0.03782411,195.65,195.61,0.03874016]
[1739303487293,14.17885891,195.64,195.61,0.03874016]
[1739303488489,14.17885891,195.64,195.49,1.602]
[1739303488490,14.17885891,195.64,195.49,17.32265891]
[1739303488792,14.17885891,195.57,195.46,14.17885891]
[1739303489190,14.17885891,195.57,195.41,1.5418]
[1739303489191,5.1145,195.54,195.43,14.17885891]
[1739303489692,0.03582104,195.5,195.47,0.03807257]
[1739303494291,0.03582104,195.5,195.49,14.17885891]
[1739303494493,5.1128,195.6,195.49,14.17885891]
[1739303494694,14.17885891,195.63,195.49,14.17885891]
[1739303494894,5.113,195.59,195.49,14.17885891]
[1739303495094,14.17885891,195.63,195.49,14.17885891]
[1739303495295,14.17885891,195.63,195.52,14.17885891]
[1739303495590,0.03293107,195.59,195.56,0.0385667]
[1739303497994,5.14613107,195.59,195.56,0.0385667]
[1739303498197,0.03293107,195.59,195.56,0.0385667]
[1739303498801,5.1135,195.57,195.56,0.0385667]
[1739303499099,0.03293107,195.59,195.56,0.0385667]
[1739303499300,5.1134,195.58,195.56,0.0385667]
[1739303499794,0.03293107,195.59,195.56,0.0385667]
[1739303500500,5.1133,195.58,195.56,0.0385667]
[1739303501707,5.14593107,195.59,195.56,0.0385667]
[1739303501902,0.03293107,195.59,195.56,0.0385667]
[1739303503202,5.1135,195.58,195.56,0.0385667]
[1739303503603,0.03293107,195.59,195.56,0.0385667]
[1739303504104,5.1135,195.57,195.56,0.0385667]
[1739303506798,5.1133,195.58,195.56,0.0385667]
[1739303507003,0.03293107,195.59,195.56,0.0385667]
[1739303509003,5.1135,195.57,195.56,0.0385667]
[1739303518202,5.1133,195.58,195.56,0.0385667]
[1739303518412,0.03293107,195.59,195.56,0.0385667]
[1739303519415,5.14593107,195.59,195.56,0.0385667]
[1739303519812,0.03293107,195.59,195.56,0.0385667]
[1739303524312,0.03293107,195.59,195.57,14.17885891]
[1739303524721,3.1246,195.7,195.57,14.17885891]
[1739303524916,1.5715,195.74,195.53,4.5382]
[1739303524917,1.5715,195.74,195.6,14.17885891]
[1739303525117,1.5715,195.74,195.63,14.17885891]
[1739303525321,5.1101,195.7,195.63,14.17885891]
[1739303526018,0.03301113,195.68,195.65,0.03500571]
[1739303529017,5.14381113,195.68,195.65,0.03500571]
[1739303529219,0.03301113,195.68,195.65,0.03500571]
[1739303529613,19.28995891,195.66,195.65,0.03500571]
[1739303529917,14.17885891,195.66,195.53,3.2153]
[1739303530224,14.17885891,195.63,195.53,3.2153]
[1739303531115,0.03649856,195.6,195.56,0.03744886]
[1739303531720,5.14919856,195.6,195.56,0.03744886]
[1739303532619,0.03649856,195.6,195.56,0.03744886]
[1739303533424,5.14929856,195.6,195.56,0.03744886]
[1739303533821,0.03649856,195.6,195.56,0.03744886]
[1739303534825,0.03649856,195.6,195.58,14.17885891]
[1739303537327,14.17885891,195.72,195.58,14.17885891]
[1739303537528,14.17885891,195.72,195.61,14.17885891]
[1739303538029,17.33635891,195.75,195.61,14.17885891]
[1739303538324,5.1430997,195.7,195.66,0.03692334]
[1739303538535,0.0327997,195.7,195.66,0.03692334]
[1739303539925,14.17885891,195.69,195.66,0.03692334]
[1739303540228,5.1119,195.64,195.58,14.17885891]
[1739303540930,5.1119,195.63,195.58,14.17885891]